[Event "Charlotte IM-D May 2022"]
[Site "Charlotte"]
[Date "2022.05.08"]
[Round "7.4"]
[White "Nakada, Akira"]
[Black "Rodriguez Rivera, Pedro"]
[Result "0-1"]
[ECO "A57"]
[WhiteElo "2324"]
[BlackElo "2197"]
[Annotator "TA"]
[PlyCount "142"]
[EventDate "2022.05.04"]
[EventType "tourn"]
[EventCountry "USA"]
[SourceTitle "playchess.com"]
[Source "ChessBase"]
[SourceQuality "1"]
[TimeControl "5400+30"]

{[%evp 17,141,75,129,129,120,114,127,135,136,123,159,133,139,92,70,75,73,79,54,61,137,61,159,150,154,81,95,85,77,91,83,84,95,-58,-51,-60,-57,-81,-77,-145,-59,-91,-91,-106,-113,-196,-195,-179,-79,-201,-90,-96,-96,-154,-47,-49,-52,-49,-50,-57,0,0,0,0,0,0,0,-218,-210,-194,-66,-66,-57,-87,26,-833,-194,-194,-53,-53,-53,-781,-629,-12798,-12793,-10102,-12047,-2594,-1184,-5475,-5073,-29973,-29975,-29972,-14,-252,-9,-8,0,-720,-713,-578,-93,-453,-93,-109,-110,-117,-110,-1837,-1778,-1254,-1357,-804,-766,-29946,-12796,-29980,-29979,-29978,-29977,-29997,-29998,-29998,-29999,-29999]} 1. c4 {[%emt 0:00:02]} g6 {[%emt 0:04:44]} 2. d4 {[%emt 0:00:40]} d6 {[%emt 0:00:11]} 3. Nc3 {[%emt 0:00:55]} Bg7 {[%emt 0:00:03]} 4. e4 {[%emt 0:02:14]} Nd7 {[%emt 0:00:35]} 5. Nf3 {[%emt 0:00:47]} c5 {[%emt 0:00:49]} 6. d5 {[%emt 0:02:18]} Ngf6 {[%emt 0:00:17]} 7. Be2 {[%emt 0:00:12]} b5 {[%emt 0:04:20]} 8. cxb5 {[%emt 0:00:08]} a6 {[%emt 0:00:01]} 9. O-O {[%emt 0:02:21]} O-O {[%emt 0:00:25]} (9... axb5 $142 10. Bxb5 Ba6) 10. Qc2 $16 {[%emt 0:03:47] A57: Benko/Volga Gambit.} axb5 {[%emt 0:00:42]} 11. Nxb5 {[%emt 0:00:04]} Ba6 {[%emt 0:00:42]} 12. a4 {[%emt 0:00:46] White is better.} Qb6 {[%emt 0:01:32]} 13. Nd2 {[%emt 0:03:24]} Rfb8 {[%emt 0:01:41]} 14. Nc4 {[%emt 0:01:32]} Qd8 {[%emt 0:00:02] [#]} 15. Nca3 $146 {[%emt 0:00:25]} (15. Bd2 $142) ({Predecessor:} 15. Nba3 Nb6 16. Bd2 Nfd7 17. Bc3 Bxc3 18. bxc3 Nxc4 19. Bxc4 Nb6 20. Bb5 Bxb5 21. Nxb5 Nxa4 {½-½ (27) Johansson,J (2066)-Nyback,T (2141) Lappeenranta 2000}) 15... Nb6 {[%emt 0:04:45]} 16. a5 {[%emt 0:03:27]} Nc8 {[%emt 0:00:51]} 17. Bd2 {[%emt 0:01:01]} Qd7 {[%emt 0:00:15][%cal Rb8b5]} 18. Nc3 {[%emt 0:00:26]} Rb4 {[%emt 0:06:52]} (18... Bxe2 $14 19. Nxe2 e6) 19. Rfe1 {[%emt 0:08:10]} (19. Bxa6 $16 Rxa6 20. Rfb1) 19... Qb7 {[%emt 0:07:32]} (19... Bxe2 $14 20. Rxe2 Rxa5) 20. Bxa6 {[%emt 0:01:24]} Qxa6 {[%emt 0:01:26]} 21. Na2 {[%emt 0:21:22]} (21. Na4 $142) 21... Rxe4 {[%emt 0:12:04]} 22. Rxe4 {[%emt 0:04:32]} Nxe4 {[%emt 0:00:09]} 23. Qxe4 {[%emt 0:00:02]} Bxb2 {[%emt 0:00:08]} 24. Rb1 {[%emt 0:09:20]} (24. Nc2 $6 Bxa1 25. Nxa1 Nb6 $1 $15) 24... Bxa3 {[%emt 0:00:20]} 25. Rb3 $2 {[%emt 0:03:40] Prevents Bb4.} ({White should play} 25. Qc2 $16) 25... Bb4 $1 $15 {[%emt 0:01:33]} 26. Nxb4 {[%emt 0:03:30]} Qxa5 {[%emt 0:03:46][%mdl 64] Pin} 27. h4 {[%emt 0:07:36][%cal Od2c3]} cxb4 {[%emt 0:05:14]} 28. Rxb4 {[%emt 0:00:33]} (28. Rb1 $142) 28... Qa1+ {[%emt 0:03:05]} (28... Nb6 $17 29. Qc2 Qa1+ 30. Rb1 Qd4) 29. Rb1 {[%emt 0:00:04]} Qe5 {[%emt 0:00:28]} 30. Qd3 {[%emt 0:06:21]} Ra1 $1 {[%emt 0:09:51]} 31. Rxa1 {[%emt 0:00:35]} (31. Bh6 $17) 31... Qxa1+ $17 {[%emt 0:02:24][%mdl 4096] Endgame KQB-KQN} 32. Kh2 {[%emt 0:00:04]} Qe5+ {[%emt 0:04:28]} (32... Nb6 $19 {has better winning chances. ...Qe5+ is the strong threat.} 33. Bg5 Qe5+ 34. f4 Qxd5) 33. f4 {[%emt 0:01:10]} (33. g3 $17 {keeps fighting.}) 33... Qf5 {[%emt 0:00:57]} (33... Qh5 $1 $19 {and Black stays clearly on top.} 34. Qb5 Qxh4+ 35. Kg1 Qg4) 34. Qb5 {[%emt 0:02:02] Against Nb6} Kg7 {[%emt 0:01:01]} 35. Qe8 {[%emt 0:01:55]} (35. Qc4 $142) 35... Qg4 {[%emt 0:05:29]} (35... f6 $17 {[%cal Of5d5]} 36. Be3 Qg4) 36. Bc3+ $15 {[%emt 0:00:10]} f6 {[%emt 0:00:06]} 37. Kg1 {[%emt 0:00:02]} Qf5 {[%emt 0:04:18]} 38. Kh1 {[%emt 0:00:51]} Kh6 {[%emt 0:01:31]} (38... h6 $1 $15) 39. Qg8 $11 {[%emt 0:06:28]} Nb6 {[%emt 0:04:58]} 40. Qf8+ {[%emt 0:04:04]} Kh5 {[%emt 0:00:02]} 41. Qxe7 {[%emt 0:00:08] White threatens g4+ and mate.} Nxd5 {[%emt 0:00:07]} 42. Qxh7+ {[%emt 0:00:13]} (42. g4+ $1 $11 Kxh4 43. Qe1+ (43. gxf5 Nxe7 44. Bxf6+ Kg4 $11) 43... Kxg4 44. Qe2+ Kxf4 45. Bd2+ Ne3 46. Qxe3+ Kg4 47. Qg1+ Kh5 48. Qh2+ Kg4 49. Qg2+ (49. Qxd6 Qf1+ 50. Kh2 Qf2+ 51. Kh1 Qf3+ 52. Kg1 Qg3+ 53. Qxg3+ Kxg3 $19) 49... Kh5 50. Qh2+ Kg4 51. Qg2+ (51. Qxd6 Qf1+ 52. Kh2 Qe2+ 53. Kg1 g5 $15) 51... Kh5 52. Qh2+) 42... Kg4 $19 {[%emt 0:00:01]} 43. Qb7 {[%emt 0:01:56]} Kxf4 {[%emt 0:02:19]} (43... Nxc3 {leads to mate.} 44. Qf3+ Kxh4 45. g3+ Kh3 46. g4+ Kh4 47. gxf5) (43... Qe4 $1 $19 44. Ba5 Kxh4 45. Qh7+ Kg4 46. Qh3+ Kxf4 47. Qh2+ Kg5 48. Qxd6 Kg4) 44. Bd2+ $15 {[%emt 0:00:26]} Kg4 {[%emt 0:10:26] Hoping for ...Qf1+.} 45. Qb3 Qe4 {[%emt 0:00:00]} (45... Kxh4 $6 46. Qc4+ Kh5 47. g4+ Qxg4 48. Qxd5+ f5 49. Kh2 $11) ({Black should try} 45... Qf1+ $1 $17 46. Kh2 Nf4 47. Qg3+ Kf5) 46. Qh3+ $2 {[%emt 0:00:36]} (46. h5 $1 $11 Nf4 47. Qf3+ Qxf3 48. gxf3+ Kxh5 49. Bxf4) 46... Kh5 $19 {[%emt 0:00:00] aiming for ...Nf4.} 47. Kh2 {[%emt 0:00:33]} Qg4 {[%emt 0:00:00]} ({Better is} 47... Nb6 $19 {Threatens to win with ...Nc4.} 48. Bc3 Nd5) 48. Qd3 $15 {[%emt 0:00:56]} Nf4 {[%emt 0:00:00][%csl Gf4][%cal Rg4g2]} ({But not} 48... Qxh4+ 49. Kg1 Nc7 50. Qxd6 $11) 49. Qb5+ $2 {[%emt 0:01:12][%mdl 8192]} (49. Bxf4 $15 Qxf4+ 50. g3 Qf2+ 51. Kh1) 49... d5 $19 {[%emt 0:00:00][%csl Gf4][%cal Rg4g2]} 50. Bxf4 {[%emt 0:00:07]} Qxf4+ {[%emt 0:00:00] KQ-KQ} 51. g3 {[%emt 0:00:28]} Qf2+ {[%emt 0:00:00]} 52. Kh3 {[%emt 0:00:03]} Qf5+ {[%emt 0:00:00]} (52... Qf3 $142 53. Kh2 Qf2+ 54. Kh3 Qf5+ 55. Kh2 Qc2+ 56. Kg1 Qe4) 53. Kg2 {[%emt 0:00:17]} Qe4+ {[%emt 0:00:00]} 54. Kh2 {[%emt 0:01:07]} Kg4 {[%emt 0:00:00]} 55. Qf1 {[%emt 0:00:57]} Qf3 $2 {[%emt 0:00:58]} (55... Qc2+ $1 {mates} 56. Kh1 Qf5 57. Qxf5+ Kxf5 58. Kh2 Kg4 59. Kg1 Kxg3 60. Kf1 f5 61. Ke2 f4 62. Ke1 f3 63. Kf1 Kf4 64. h5 d4 65. hxg6 d3 66. Ke1 Ke3 67. Kd1 f2 68. Kc1 f1=Q+ 69. Kb2 d2 70. Kc2 Qc4+ 71. Kb2 d1=Q 72. g7 Qdc1#) 56. Qh3+ $11 {[%emt 0:00:05]} Kh5 {[%emt 0:00:04]} 57. Qd7 {[%emt 0:00:01] Intending Qh7+ and mate.} Qf5 {[%emt 0:00:54]} 58. Qa4 {[%emt 0:01:29][%mdl 8192]} (58. Qe7 $11) 58... Qf2+ $1 $19 {[%emt 0:00:19]} 59. Kh3 {[%emt 0:00:03]} Qf1+ {[%emt 0:00:05]} 60. Kh2 {[%emt 0:00:02]} Qe2+ $2 {[%emt 0:00:30]} (60... f5 $1 $19 {( -> ...Qf2+)} 61. Qe8 Qc4) 61. Kh3 $17 {[%emt 0:00:05]} Qf3 {[%emt 0:00:36][%cal Rf3h1]} 62. Kh2 {[%emt 0:00:16] [#] Inhibits Qh1+.} f5 $1 {[%emt 0:00:27]} 63. Qd4 $2 {[%emt 0:00:39][%mdl 8192] Against Qf2+} (63. Qa1 $17) 63... Qe2+ $19 {[%emt 0:01:08]} 64. Kg1 {[%emt 0:00:04] [#]} Qe4 $1 {[%emt 0:00:27]} 65. Qd1+ {[%emt 0:00:08]} Qg4 {[%emt 0:00:19]} 66. Qd3 {[%emt 0:00:01]} d4 {[%emt 0:00:36]} 67. Qa3 {[%emt 0:02:06]} Qd1+ {[%emt 0:00:41] Black mates.} 68. Kh2 {[%emt 0:00:18]} Kg4 {[%emt 0:00:50]} 69. Qd6 {[%emt 0:02:20]} Qe2+ {[%emt 0:00:21]} 70. Kg1 {[%emt 0:00:00]} Kh3 {[%emt 0:00:15][%cal Re2e1] Active counter play!} 71. Qc6 {[%emt 0:00:00]} Qe1# {[%emt 0:00:10] Both players deserved the win here.  Weighted Error Value: White=1.07/Black=0.73} 0-1

[Event "Charlotte IM-D May 2022"]
[Site "Charlotte"]
[Date "2022.05.08"]
[Round "7.5"]
[White "Woodward, Andy"]
[Black "Marek, Matyas"]
[Result "1/2-1/2"]
[ECO "A32"]
[WhiteElo "2354"]
[BlackElo "2363"]
[Annotator "TA"]
[PlyCount "65"]
[EventDate "2022.05.04"]
[EventType "tourn"]
[EventCountry "USA"]
[SourceTitle "playchess.com"]
[Source "ChessBase"]
[SourceQuality "1"]
[TimeControl "5400+30"]

{[%evp 14,65,54,27,22,8,41,31,32,38,27,8,23,26,30,25,64,64,64,54,60,68,71,16,22,13,15,38,39,33,26,19,29,13,18,17,8,16,19,14,12,12,31,15,20,10,10,0,7,0,0,0,0,0]} 1. d4 {[%emt 0:00:02]} Nf6 {[%emt 0:00:42]} 2. c4 {[%emt 0:00:11]} e6 {[%emt 0:00:04]} 3. g3 {[%emt 0:00:22]} c5 {[%emt 0:00:04]} 4. Nf3 {[%emt 0:01:27]} cxd4 {[%emt 0:08:14]} 5. Nxd4 {[%emt 0:00:47]} Nc6 {[%emt 0:00:54]} 6. Bg2 {[%emt 0:00:46]} Qb6 {[%emt 0:01:09]} 7. Nb3 {[%emt 0:01:45]} Bb4+ {[%emt 0:01:55]} 8. Bd2 {[%emt 0:05:04]} d5 {[%emt 0:01:51] A32: Symmetrical English: 2 Nf3 Nf6 3 d4 cxd4 4 Nxd4 e6.} 9. cxd5 {[%emt 0:00:58]} exd5 {[%emt 0:00:38]} 10. O-O {[%emt 0:00:42]} Bxd2 {[%emt 0:04:34] White is slightly better.} 11. Qxd2 {[%emt 0:02:22]} O-O {[%emt 0:00:33]} 12. e3 {[%emt 0:06:24] [#]} Bf5 $146 {[%emt 0:02:57]} ({Predecessor:} 12... Rd8 13. Nc3 Bf5 14. Rad1 Rac8 15. Qe2 Ne5 16. h3 Be6 17. Nd4 Nc4 18. b3 Nd6 {1-0 (65) Tan,Z (2429)-Kovalevskaya,E (2421) Shenzhen 2011}) 13. Nc3 {[%emt 0:00:45]} Rad8 {[%emt 0:00:31]} 14. Rfd1 {[%emt 0:04:45]} Ne4 {[%emt 0:09:03]} 15. Qc1 {[%emt 0:03:53]} Nb4 {[%emt 0:03:21]} 16. Nd4 {[%emt 0:07:08]} Bg6 {[%emt 0:00:12]} 17. a3 {[%emt 0:01:01]} Nc6 {[%emt 0:09:47]} 18. Nde2 {[%emt 0:03:28]} (18. Nxc6 $16 bxc6 19. Nxe4 dxe4 20. Qc2) 18... Nxc3 $1 $11 {[%emt 0:02:27]} 19. Qxc3 {[%emt 0:08:24]} Bh5 {[%emt 0:03:56]} 20. Re1 {[%emt 0:05:24][%cal Bd1e1,Be1e2,Be2e4][%mdl 32]} Bxe2 {[%emt 0:02:33]} 21. Rxe2 {[%emt 0:00:08]} d4 {[%emt 0:00:09]} 22. exd4 {[%emt 0:00:06]} Nxd4 {[%emt 0:45:56]} 23. Re4 {[%emt 0:00:31]} Qd6 {[%emt 0:00:00]} 24. Rae1 {[%emt 0:00:46]} b6 {[%emt 0:00:00]} 25. h4 {[%emt 0:00:27]} Ne6 {[%emt 0:00:00]} 26. b4 {[%emt 0:01:48]} Qd2 {[%emt 0:00:00]} 27. R4e3 {[%emt 0:07:33]} Qd6 {[%emt 0:00:00]} 28. Kh2 {[%emt 0:02:57]} Rc8 {[%emt 0:00:00] The position is equal.} 29. Qb2 {[%emt 0:00:23]} Rc4 {[%emt 0:00:00]} 30. Re4 {[%emt 0:00:26]} Rfc8 {[%emt 0:00:00]} 31. R1e2 {[%emt 0:02:03] Prevents Rc2.} Rxe4 {[%emt 0:00:00]} 32. Rxe4 {[%emt 0:00:32]} Rd8 {[%emt 0:00:00]} 33. Rc4 {[%emt 0:02:09] Weighted Error Value: White=0.11 (very precise) /Black=0.04 (flawless)} 1/2-1/2

[Event "Charlotte IM-D May 2022"]
[Site "Charlotte"]
[Date "2022.05.08"]
[Round "8.1"]
[White "Rosenberg, Evan S"]
[Black "Marek, Matyas"]
[Result "0-1"]
[ECO "E90"]
[WhiteElo "2035"]
[BlackElo "2363"]
[Annotator "TA"]
[PlyCount "52"]
[EventDate "2022.05.04"]
[EventType "tourn"]
[EventCountry "USA"]
[SourceTitle "playchess.com"]
[Source "ChessBase"]
[SourceQuality "1"]
[TimeControl "5400+30"]

{[%evp 18,52,-20,-20,-12,-18,-27,-13,-33,-284,-283,-321,-310,-358,-352,-362,-334,-402,-310,-356,-365,-364,-361,-362,-355,-566,-344,-1011,-1007,-993,-979,-1197,-1189,-1178,-1156,-1091,-1066]} 1. d4 {[%emt 0:00:03]} Nf6 {[%emt 1:31:00]} 2. c4 {[%emt 0:00:08]} g6 {[%emt 0:00:00]} 3. Nc3 {[%emt 0:00:41]} Bg7 {[%emt 0:00:00]} 4. e4 {[%emt 0:00:06]} d6 {[%emt 0:00:00]} 5. Nf3 {[%emt 0:00:10]} O-O {[%emt 0:00:00]} 6. h3 {[%emt 0:00:04]} e5 {[%emt 0:00:00]} 7. dxe5 {[%emt 0:00:04]} dxe5 {[%emt 0:00:00]} 8. Qxd8 {[%emt 0:00:07]} Rxd8 {[%emt 0:00:00]} 9. Bg5 {[%emt 0:00:08]} Na6 {[%emt 0:00:00]} 10. Nd5 {[%emt 0:00:11]} Rd6 {[%emt 0:00:00] E90: King's Indian: Classical: Early deviations and 6 h3.} 11. Bxf6 {[%emt 0:00:09]} Bxf6 {[%emt 0:00:00]} 12. b4 {[%emt 0:00:09]} c6 {[%emt 0:00:00] The position is equal.} 13. c5 $2 {[%emt 0:00:34][%mdl 8192]} Rxd5 $19 {[%emt 0:00:00]} 14. exd5 {[%emt 0:00:07] [#]} e4 $1 {[%emt 0:00:00]} ({Weaker is} 14... Nxb4 15. Rb1 Nxd5 16. Bc4 $15) 15. O-O-O {[%emt 0:00:32]} exf3 {[%emt 0:00:00]} ({Inferior is} 15... Nxb4 16. d6 $17) 16. Bxa6 {[%emt 0:06:41]} bxa6 {[%emt 0:00:00] [#]} 17. Rhe1 $146 {[%emt 0:00:32]} ({Predecessor:} 17. dxc6 fxg2 18. Rh2 Bf5 19. Rxg2 Rc8 20. Rd6 Be7 21. Rd4 Rxc6 22. f3 a5 23. a3 axb4 24. axb4 {0-1 (36) Rosenberg,E (2035)-Martin Carmona,G (2329) Chess.com INT 2022}) 17... Bd7 {[%emt 0:00:00] Inhibits Re8+.} 18. g4 {[%emt 0:06:09]} cxd5 {[%emt 0:00:00]} 19. Rxd5 {[%emt 0:05:43]} Bb5 {[%emt 0:00:00]} 20. a3 {[%emt 0:06:52]} Bh4 {[%emt 0:00:00]} 21. Red1 {[%emt 0:16:59]} (21. Re3 $142) 21... Bxf2 {[%emt 0:00:00]} 22. Rd6 $2 {[%emt 0:15:54] [#]} (22. R5d3) 22... Be3+ {[%emt 0:00:00] Black is clearly winning.} 23. Kc2 {[%emt 0:01:24]} f2 {[%emt 0:00:00]} 24. c6 {[%emt 0:17:49]} f1=Q {[%emt 0:00:00]} 25. Rxf1 {[%emt 0:00:05]} Bxf1 {[%emt 0:00:00]} 26. c7 {[%emt 0:00:07]} Bb6 {[%emt 0:00:00] White did not feel at home in the position after the opening.  Weighted Error Value: White=1.05/Black=0.22 (precise)} 0-1

[Event "Charlotte IM-D May 2022"]
[Site "Charlotte"]
[Date "2022.05.08"]
[Round "8.2"]
[White "Rodriguez Rivera, Pedro"]
[Black "Woodward, Andy"]
[Result "1/2-1/2"]
[ECO "D00"]
[WhiteElo "2197"]
[BlackElo "2354"]
[Annotator "TA"]
[PlyCount "136"]
[EventDate "2022.05.04"]
[EventType "tourn"]
[EventCountry "USA"]
[SourceTitle "playchess.com"]
[Source "ChessBase"]
[SourceQuality "1"]
[TimeControl "5400+30"]

{[%evp 12,136,0,0,49,63,53,46,77,48,55,29,54,0,19,31,72,49,42,36,28,16,11,12,29,41,80,22,16,16,17,17,18,16,82,61,77,67,90,83,90,84,91,89,85,39,39,34,41,34,39,34,34,34,40,41,41,42,42,34,34,16,16,16,16,16,16,16,12845,12845,12848,0,0,0,0,0,0,0,0,0,0,0,0,0,0,0,0,0,0,0,0,0,0,0,0,0,0,0,0,0,0,0,0,0,0,0,0,0,0,0,0,0,0,0,0,0,0,0,0,0,0,0,0,0,0,0,0]} 1. d4 {[%emt 0:02:49]} Nf6 {[%emt 0:00:21]} 2. Nf3 {[%emt 0:00:06]} g6 {[%emt 0:00:20]} 3. Nc3 {[%emt 0:00:19]} d5 {[%emt 0:00:17]} 4. Bf4 {[%emt 0:00:35]} Bg7 {[%emt 0:00:19]} 5. Qd2 {[%emt 0:01:51]} Ne4 {[%emt 0:09:04]} 6. Nxe4 {[%emt 0:00:33]} dxe4 {[%emt 0:00:02]} 7. Ne5 {[%emt 0:00:41]} f6 {[%emt 0:01:20] D00: 1 d4 d5: Unusual lines.} (7... c5 $11) 8. Nc4 $14 {[%emt 0:00:26]} Be6 {[%emt 0:05:04]} 9. e3 {[%emt 0:03:43]} Qd7 {[%emt 0:14:42] [#] White is slightly better.} 10. Na3 $146 {[%emt 0:06:10] White is more active.} ({Predecessor:} 10. Be2 Nc6 11. Na3 Bf7 12. Nb5 e5 13. dxe5 Qxd2+ 14. Kxd2 O-O-O+ 15. Kc1 fxe5 16. Bg5 {½-½ (27) Zelba,M (2066)-Schmitt,R (1907) Bad Homburg 2011}) 10... O-O {[%emt 0:04:56]} 11. h4 {[%emt 0:02:47]} Rd8 {[%emt 0:04:36]} 12. c3 {[%emt 0:04:56]} (12. O-O-O $14) 12... Bf7 {[%emt 0:01:58]} 13. Qc2 {[%emt 0:00:30]} f5 {[%emt 0:02:35][%cal Oc7c5]} 14. h5 {[%emt 0:02:15]} c5 {[%emt 0:02:45][%cal Rc5d4]} 15. hxg6 {[%emt 0:00:15]} hxg6 {[%emt 0:00:10][%cal Rc5d4]} 16. Bc4 {[%emt 0:06:35]} Bxc4 {[%emt 0:04:44]} 17. Nxc4 {[%emt 0:00:19]} Qe6 {[%emt 0:00:23]} 18. Qb3 {[%emt 0:02:52]} Nc6 {[%emt 0:05:57][%cal Rc5d4]} 19. Na5 {[%emt 0:03:35]} Qxb3 $11 {[%emt 0:05:30]} 20. axb3 {[%emt 0:01:49]} Nxa5 {[%emt 0:06:18]} 21. Rxa5 {[%emt 0:00:14]} b6 {[%emt 0:04:40]} 22. Ra6 {[%emt 0:00:53]} Rd7 {[%emt 0:09:28]} (22... Bf6 $11 {remains equal.}) 23. dxc5 $16 {[%emt 0:11:18]} bxc5 {[%emt 0:01:44]} 24. Rxg6 {[%emt 0:00:17] Strongly threatening Be5.} Rad8 {[%emt 0:00:23] ( -> ...Rd1+)} 25. O-O {[%emt 0:00:05]} Kf7 {[%emt 0:00:34] [#]} 26. Rc6 {[%emt 0:00:54]} e5 {[%emt 0:02:38]} 27. Bg3 {[%emt 0:01:41]} Rb8 {[%emt 0:00:31]} 28. Rxc5 {[%emt 0:00:18]} ({White should play} 28. f3 $16) 28... Rxb3 $14 {[%emt 0:00:06]} 29. Bxe5 {[%emt 0:01:04]} Bxe5 {[%emt 0:00:12]} 30. Rxe5 $16 {[%emt 0:00:01][%mdl 4096] Endgame KRR-KRR} Kf6 {[%emt 0:13:53]} 31. Ra5 {[%emt 0:01:13]} Rxb2 {[%emt 0:00:00]} 32. Ra6+ {[%emt 0:04:36]} Rb6 {[%emt 0:00:00]} 33. Rxb6+ {[%emt 0:03:00]} axb6 $14 {[%emt 0:00:00] KR-KR} 34. Rb1 {[%emt 0:00:02]} Rd6 {[%emt 0:00:00]} 35. Rb5 {[%emt 0:00:02]} Kg5 {[%emt 0:00:00]} 36. f3 {[%emt 0:02:06]} exf3 {[%emt 0:00:00]} 37. gxf3 {[%emt 0:00:02] Threatens to win with e4.} Rd3 {[%emt 0:00:00][%csl LRc3,LRe3]} 38. Kf2 {[%emt 0:00:51]} Rxc3 {[%emt 0:00:00]} 39. Rxb6 {[%emt 0:00:42]} f4 $2 {[%emt 0:00:00][%mdl 8192]} (39... Rc2+ $11 40. Ke1 Ra2) 40. Rb5+ $18 {[%emt 0:00:54]} Kh4 {[%emt 0:00:00] [#]} 41. exf4 $2 {[%emt 0:00:36]} (41. Rb4 $1 $18 Rc2+ 42. Ke1) 41... Ra3 $11 {[%emt 0:00:00] The position is equal.} 42. Rg5 {[%emt 0:02:36]} Rb3 {[%emt 0:00:00]} 43. Rg8 {[%emt 0:01:01][%cal Rg8h8]} Kh5 {[%emt 0:00:00]} 44. Kg3 {[%emt 0:00:21]} Rb5 {[%emt 0:00:00]} 45. Kf2 {[%emt 0:02:05]} Rb3 {[%emt 0:00:00]} 46. Rg5+ {[%emt 0:01:29]} Kh6 {[%emt 0:00:00]} 47. Kg3 {[%emt 0:00:15]} Rb1 {[%emt 0:00:00]} 48. Kg4 {[%emt 0:00:20]} Rb4 {[%emt 0:00:00]} 49. Ra5 {[%emt 0:00:59]} Kg6 {[%emt 0:09:30]} 50. Ra6+ {[%emt 0:00:16]} Kf7 {[%emt 0:00:00]} 51. Kg5 {[%emt 0:00:09]} Rb3 {[%emt 0:00:00]} 52. Ra7+ {[%emt 0:00:13]} Kg8 {[%emt 0:00:00]} 53. f5 {[%emt 0:00:39] Black must now prevent Kg6.} Rxf3 {[%emt 0:00:00]} 54. Kg6 {[%emt 0:00:16][%cal Ra7a8]} Rg3+ {[%emt 0:00:00]} 55. Kf6 {[%emt 0:00:08]} Rf3 {[%emt 0:00:00]} 56. Ra8+ {[%emt 0:00:48]} Kh7 {[%emt 0:00:00]} 57. Ke6 {[%emt 0:00:14] Hoping for f6.} Kg7 {[%emt 0:00:00] Inhibits f6+.} 58. Ra7+ {[%emt 0:00:17]} Kg8 {[%emt 0:00:00]} 59. Kf6 {[%emt 0:00:25]} Rf2 {[%emt 0:00:00]} 60. Ra8+ {[%emt 0:00:15]} Kh7 {[%emt 0:05:30]} 61. Re8 {[%emt 0:00:07]} Rf1 {[%emt 0:00:00]} 62. Re5 {[%emt 0:00:35]} Kg8 {[%emt 0:00:00]} 63. Rd5 {[%emt 0:01:52]} Rf2 {[%emt 0:00:00]} 64. Rd8+ {[%emt 0:01:58]} Kh7 {[%emt 0:00:00]} 65. Re8 {[%emt 0:00:23]} Rf3 {[%emt 0:00:00]} 66. Re5 {[%emt 0:00:08]} Kg8 {[%emt 0:00:00]} 67. Ke7 {[%emt 0:00:02] aiming for f6.} Kg7 {[%emt 0:00:00] Prevents f6+.} 68. Ke6 {[%emt 0:00:02]} Ra3 {[%emt 0:00:00] Weighted Error Value: White=0.18 (very precise) /Black=0.10 (very precise)} 1/2-1/2